[Event "13th KIIT Festival-A 2022"]
[Site "Bhubaneswar"]
[Date "2022.05.27"]
[Round "8.1"]
[White "Amonatov, Farrukh"]
[Black "Savchenko, Boris"]
[Result "1-0"]
[ECO "B87"]
[WhiteElo "2622"]
[BlackElo "2524"]
[Annotator "TA"]
[PlyCount "143"]
[EventDate "2022.05.15"]
[EventType "swiss"]
[EventCountry "IND"]
[SourceTitle "playchess.com"]
[Source "ChessBase"]
[SourceQuality "1"]
[TimeControl "5400+30"]

{[%evp 17,143,30,101,12,112,72,94,93,123,122,112,100,104,111,90,76,66,0,0,0,0,0,0,0,0,0,0,0,113,111,121,106,195,223,218,222,222,0,0,0,218,222,221,214,248,243,306,292,349,338,302,293,404,373,930,869,796,554,12847,12848,29937,29938,29938,29939,29939,29943,29943,29940,29938,29941,12846,12840,10524,2942,12295,116,116,0,12817,11975,12805,12825,12791,11419,12827,12815,12832,12815,12806,12689,12212,12205,12205,11671,11657,11657,11617,11596,11552,11493,11419,11419,5093,788,1388,788,733,591,29963,6126,29963,29967,29967,29968,29968,29969,29970,29970,29981,29969,29968,29970,29982,29983,29983,29984,29984,29985]} 1. e4 {[%emt 0:00:04] Bulletin} c5 {[%emt 0:00:02]} 2. Nf3 {[%emt 0:00:09]} d6 {[%emt 0:00:06]} 3. d4 {[%emt 0:00:05]} Nf6 {[%emt 0:00:04]} 4. Nc3 {[%emt 0:00:04]} cxd4 {[%emt 0:00:06]} 5. Nxd4 {[%emt 0:00:04]} a6 {[%emt 0:00:05]} 6. Bc4 {[%emt 0:00:38]} e6 {[%emt 0:00:23]} 7. Bb3 {[%emt 0:00:11]} b5 {[%emt 0:00:07]} 8. O-O {[%emt 0:01:00]} b4 {[%emt 0:07:18]} 9. Na4 {[%emt 0:00:45]} Nxe4 {[%emt 0:00:51]} (9... Bd7 $11) 10. f4 {[%emt 0:01:04] B87: Sicilian Scheveningen/Najdorf: 6 Bc4, with early ...b5.} (10. Re1 $1 $16 {[%cal Re1e4]} Nf6 11. Qf3) 10... g6 {[%emt 0:00:29]} (10... Nf6 $1 $11) 11. f5 {[%emt 0:03:04]} gxf5 {[%emt 0:08:07] [#]} 12. Nxf5 {[%emt 0:02:31] White is better.} Rg8 {[%emt 0:30:14] [#]} (12... exf5 13. Qd5) 13. Bd5 $1 {[%emt 0:27:40][%mdl 512] White is more active.} Ra7 {[%emt 0:03:54]} 14. Bxe4 {[%emt 0:13:04]} exf5 {[%emt 0:00:53]} 15. Bxf5 {[%emt 0:03:49] Strongly threatening Be3.} Re7 {[%emt 0:02:34] Inhibits Be3.} 16. Bxc8 {[%emt 0:06:10]} Qxc8 {[%emt 0:00:09]} 17. Bf4 {[%emt 0:00:09]} (17. Rf2 $14) 17... Qc6 $11 {[%emt 0:15:32][%csl Gg8,LRa4,LRg2][%cal Rc6g2]} (17... Qb7 18. Rf2 Re6 19. c3 $16) 18. Qf3 {[%emt 0:01:20]} Qxa4 {[%emt 0:03:54]} 19. Bxd6 {[%emt 0:01:31]} Qc6 $1 {[%emt 0:00:23]} 20. Bxb8 {[%emt 0:02:45] Chess con chili.} Qb6+ {[%emt 0:17:12]} 21. Kh1 {[%emt 0:07:32]} Qxb8 {[%emt 0:00:05] [#]} 22. Rae1 $146 {[%emt 0:15:31][%mdl 128] White mounts an attack.} ({Predecessor:} 22. Qc6+ Rd7 23. Rae1+ Be7 24. Rxf7 Kxf7 25. Qe6+ Kf8 26. Qxd7 Qd6 27. Qb7 Rg6 28. c3 {0-1 (52) Fischer,R-Tal,M Bled/Zagreb/Belgrade 1959 Candidates [Bulletin]}) 22... Rg6 {[%emt 0:00:32] Against Qc6+} (22... Kd8 $11) 23. Qxf7+ $1 $16 {[%emt 0:00:36]} Kd7 {[%emt 0:00:03]} 24. Rd1+ $1 {[%emt 0:07:09]} Rd6 {[%emt 0:00:14]} (24... Kc6 $16 25. Qxf8 Qxf8 26. Rxf8 Re2) 25. Rxd6+ $1 $18 {[%emt 0:00:11]} (25. Qxf8 Qxf8 26. c4 Re2 $1 $19) 25... Kxd6 {[%emt 0:00:04] [#]} 26. Rf6+ {[%emt 0:00:12]} Ke5 {[%emt 0:06:40]} 27. Rf5+ {[%emt 0:00:37]} ({Only move:} 27. Qxf8 $18 Qxf8 28. Rxf8) 27... Kd6 $11 {[%emt 0:00:04]} 28. Rf6+ {[%emt 0:00:02]} (28. Qd5+ $11 Kc7 29. Qc5+ Kd7 30. Qd5+ Kc7 31. Qc5+ Kd7 32. Qd5+ Kc7) 28... Ke5 $1 $18 {[%emt 0:01:08]} 29. Qxf8 {[%emt 0:01:45]} ({But not} 29. Rf5+ $6 Kd6 30. Rf6+ $16 (30. Qd5+ Kc7 $11)) 29... Qxf8 {[%emt 0:00:09]} 30. Rxf8 {[%emt 0:00:11][%mdl 4096] Endgame KR-KR} Rd7 {[%emt 0:01:02] ( -> ...Rd1+)} 31. h3 {[%emt 0:00:39]} Rd1+ {[%emt 0:00:12]} 32. Kh2 {[%emt 0:00:01]} Rb1 {[%emt 0:00:11]} 33. b3 {[%emt 0:01:34]} Rb2 {[%emt 0:00:04] [#]} 34. Rb8 $1 {[%emt 0:01:30]} Rxc2 {[%emt 0:03:37]} 35. Rxb4 {[%emt 0:00:07]} Rxa2 $2 {[%emt 0:00:03]} (35... Rc6 36. Rh4 Rc7) 36. Rh4 {[%emt 0:03:03]} Rb2 {[%emt 0:00:08]} 37. b4 {[%emt 0:00:40]} Kf5 {[%emt 0:00:25]} 38. Rxh7 {[%emt 0:00:27]} Rxb4 {[%emt 0:00:04]} 39. Rh5+ {[%emt 0:00:04]} Kg6 {[%emt 0:00:14]} 40. Ra5 {[%emt 0:00:03]} Rb6 {[%emt 0:00:03]} 41. h4 {[%emt 0:00:28]} Kf6 {[%emt 0:01:58]} 42. Kh3 {[%emt 0:00:13]} Rb3+ {[%emt 0:01:00]} 43. g3 {[%emt 0:00:11]} Rb6 {[%emt 0:00:02]} 44. Ra3 {[%emt 0:00:57]} Ke5 {[%emt 0:00:25]} 45. Kg4 {[%emt 0:01:36]} (45. g4 $142 Kf6 46. Kg2) 45... Kf6 {[%emt 0:00:16]} 46. Ra5 $2 {[%emt 0:01:07]} (46. Ra4 $18 {and the rest is easy. Threatening mate with h5.} Re6 47. h5) 46... Rb4+ $16 {[%emt 0:00:20]} 47. Kh3 $2 {[%emt 0:00:05][%mdl 8192]} (47. Kf3 $16 Rb3+ 48. Kg2) 47... Rb6 $1 $18 {[%emt 0:00:02] Black is now going downhill.} 48. Ra4 {[%emt 0:00:22]} Rc6 {[%emt 0:01:11]} 49. g4 {[%emt 0:00:40]} Rc3+ {[%emt 0:00:14]} 50. Kg2 {[%emt 0:00:01]} Rc6 {[%emt 0:01:31]} 51. Kg3 {[%emt 0:00:23]} a5 {[%emt 0:00:52]} 52. Rxa5 {[%emt 0:01:23] Intending h5 and mate.} Rc3+ {[%emt 0:00:05]} 53. Kg2 {[%emt 0:00:20]} Rc2+ {[%emt 0:00:19]} 54. Kf3 {[%emt 0:00:08] g5+ would kill now.} Rc3+ {[%emt 0:00:04]} 55. Kf2 {[%emt 0:00:05]} Rc2+ {[%emt 0:00:19]} 56. Ke3 {[%emt 0:00:07]} Rc3+ {[%emt 0:00:24]} 57. Kd4 {[%emt 0:00:12]} Rg3 {[%emt 0:01:49]} 58. Rf5+ {[%emt 0:01:29]} Kg7 {[%emt 0:00:22]} 59. Rf4 {[%emt 0:00:16]} Kg6 {[%emt 0:00:45]} 60. Ke5 {[%emt 0:00:16]} (60. g5 $142 Rg1 61. Rf6+ Kh7 62. Rh6+ Kg7 63. Ke4) 60... Re3+ {[%emt 0:00:21]} 61. Re4 {[%emt 0:01:57]} Rh3 {[%emt 0:00:05]} 62. g5 {[%emt 0:00:27]} Kh5 {[%emt 0:00:59]} 63. Rf4 {[%emt 0:00:33]} (63. Kf5 $142 Rf3+ 64. Ke6 Rf5 65. Ke7 (65. g6 Rf3 $11) 65... Kg6 66. Re6+ Kg7 67. Kd6 Kf7 68. Re5) 63... Ra3 {[%emt 0:00:26]} 64. Kf6 {[%emt 0:00:29] White mates.} Ra7 {[%emt 0:00:12]} 65. Rf5 {[%emt 0:00:32]} Rb7 {[%emt 0:00:34]} 66. Re5 {[%emt 0:00:21]} Rb8 {[%emt 0:00:58]} 67. Kf7 {[%emt 0:00:43]} Ra8 {[%emt 0:00:19]} 68. Re8 {[%emt 0:00:32]} Ra7+ {[%emt 0:00:02]} 69. Re7 {[%emt 0:00:07]} Ra8 {[%emt 0:01:10]} 70. g6 {[%emt 0:00:47][%cal Bg5g6,Bg6g7][%mdl 32]} Kh6 {[%emt 0:00:07]} 71. g7 {[%emt 0:00:10]} Kh7 {[%emt 0:00:07]} 72. h5 {[%emt 0:00:05] Weighted Error Value: White=0.41/Black=0.51} 1-0

[Event "13th KIIT Festival-A 2022"]
[Site "Bhubaneswar"]
[Date "2022.05.27"]
[Round "8.2"]
[White "Mirzoev, Azer"]
[Black "Aleksandrov, Aleksej"]
[Result "1/2-1/2"]
[WhiteElo "2476"]
[BlackElo "2492"]
[Annotator "TA"]
[PlyCount "19"]
[EventDate "2022.05.15"]
[EventType "swiss"]
[EventCountry "IND"]
[SourceTitle "playchess.com"]
[Source "ChessBase"]
[SourceQuality "1"]
[TimeControl "5400+30"]

{[%evp 18,19,23,0]} 1. d4 {[%emt 0:00:08]} d5 {[%emt 0:00:02]} 2. c4 {[%emt 0:00:11]} c6 {[%emt 0:00:04]} 3. Nc3 {[%emt 0:00:12]} Nf6 {[%emt 0:00:06]} 4. Nf3 {[%emt 0:00:22]} dxc4 {[%emt 0:00:05]} 5. a4 {[%emt 0:00:19]} Bf5 {[%emt 0:00:04]} 6. Nh4 {[%emt 0:01:10] [#]} Bc8 $146 {[%emt 0:00:04]} ({Predecessor:} 6... e6 7. Nxf5 exf5 8. e3 Bd6 9. Bxc4 O-O 10. Qc2 g6 11. O-O Na6 12. f3 Nb4 13. Qf2 c5 14. Nb5 Be7 15. Kh1 a6 16. Nc3 Qc7 17. dxc5 Bxc5 {0-1 (71) Kuzubov,Y (2639)-Jobava,B (2588) Bucharest 2022}) 7. Nf3 {[%emt 0:01:24]} Bf5 {[%emt 0:00:07]} 8. Nh4 {[%emt 0:00:52]} Bc8 {[%emt 0:00:06]} 9. Nf3 {[%emt 0:00:11]} Bf5 {[%emt 1:34:22]} 10. Nh4 {10.Ne5 is the modern continuation.} 1/2-1/2

[Event "13th KIIT Festival-A 2022"]
[Site "Bhubaneswar"]
[Date "2022.05.27"]
[Round "8.3"]
[White "Nikitenko, Mihail"]
[Black "Paichadze, Luka"]
[Result "1-0"]
[ECO "B12"]
[WhiteElo "2479"]
[BlackElo "2567"]
[Annotator "TA"]
[PlyCount "47"]
[EventDate "2022.05.15"]
[EventType "swiss"]
[EventCountry "IND"]
[SourceTitle "playchess.com"]
[Source "ChessBase"]
[SourceQuality "1"]
[TimeControl "5400+30"]

{[%evp 9,47,3,0,-1,0,-9,9,-23,50,-17,49,36,31,26,27,26,28,0,317,307,289,302,575,406,388,262,1427,1604,1572,1601,1566,1543,1490,1339,1342,1291,1087,765,700,683]} 1. e4 {[%emt 0:00:06]} c6 {[%emt 0:00:04]} 2. d4 {[%emt 0:00:06]} d5 {[%emt 0:00:05]} 3. e5 {[%emt 0:00:05]} c5 {[%emt 0:00:11]} 4. dxc5 {[%emt 0:00:12]} e6 {[%emt 0:00:10]} 5. Be3 {[%emt 0:00:06]} Nd7 {[%emt 0:01:07]} 6. Nc3 {[%emt 0:05:23] B12: Caro-Kann: Advance Variation.} Ne7 {[%emt 0:01:38]} 7. Nf3 {[%emt 1:28:02]} Nf5 {[%emt 0:03:53] [#]} 8. b4 $146 {[%emt 0:00:00] The position is equal.} ({Predecessor:} 8. Bf4 Nxc5 9. Qd2 Bd7 10. Be2 Rc8 11. g4 Ne7 12. Nd4 a6 13. O-O b5 14. a3 {½-½ (45) Krzyzanowski,M (2518)-Socko,B (2601) Warsaw 2020}) 8... a6 {[%emt 0:22:51]} (8... Nxe3 $11 9. fxe3 a5) 9. a3 {[%emt 0:00:00]} ({White should play} 9. Bg5 $14 Be7 10. Bd2) 9... b6 {[%emt 0:07:33] [#]} ({Better is} 9... Nxe3 $11 10. fxe3 g6) 10. Nxd5 $1 {[%emt 0:00:00]} exd5 {[%emt 0:14:46]} 11. Qxd5 {[%emt 0:00:00]} Nxe3 {[%emt 0:01:26]} 12. fxe3 {[%emt 0:00:00]} Ra7 {[%emt 0:00:13][%cal Rb6c5]} 13. O-O-O $40 {[%emt 0:00:00][%mdl 128] Black must now prevent Bc4. Black needs to defend precisely.} (13. Bc4 $5 {[%cal Rd5f7]} Nxc5 14. Qxd8+ (14. bxc5 Qxd5 15. Bxd5 Bxc5 $11) 14... Kxd8 15. bxc5 Bxc5 16. Nd4 $14) 13... bxc5 $2 {[%emt 0:03:21][%mdl 8192]} (13... Be7 $1 $11 {and Black has nothing to worry.} 14. Bc4 O-O) 14. Bc4 $18 {[%emt 0:00:00][%csl Gc4][%cal Rd5f7]} Qe7 {[%emt 0:00:26] [#] And now ...Rc7 would win.} 15. Qc6 {[%emt 0:00:00] Inhibits Rc7.} Kd8 {[%emt 0:01:44]} (15... Bb7 {might work better.} 16. Qc7 Bd5 17. Qc8+ Qd8 18. Qxd8+ Kxd8 19. Rxd5 (19. Bxd5 cxb4 20. Bxf7 Kc7 $18) 19... Ke8) 16. e6 {[%emt 0:00:00][%mdl 64] Hoping for Qb6+. Pin} Rc7 {[%emt 0:02:08]} 17. Ne5 {[%emt 0:00:00] Really sharp!} fxe6 $2 {[%emt 0:03:43]} (17... Qxe6 18. Bxe6 Rxc6) 18. Qb6 {[%emt 0:00:00] Threatening mate with Nc6+. White is clearly winning.} Ke8 {[%emt 0:13:44]} 19. Qxc7 {[%emt 0:00:00][%mdl 64] Trapped Piece} Nxe5 {[%emt 0:00:03]} 20. Qxc8+ {[%emt 0:00:00]} Kf7 {[%emt 0:00:03] [#]} 21. Bxe6+ $1 {[%emt 0:00:00]} Kg6 {[%emt 0:01:30]} 22. Rd5 {[%emt 0:00:00]} Qf6 {[%emt 0:01:02]} 23. Qe8+ {[%emt 0:00:00]} Kh6 {[%emt 0:00:06] [#]} 24. Bg4 $1 {[%emt 0:00:00] Weighted Error Value: White=0.45/Black=1.08} 1-0

[Event "13th KIIT Festival-A 2022"]
[Site "Bhubaneswar"]
[Date "2022.05.27"]
[Round "8.4"]
[White "Fedorov, Alexei"]
[Black "Arpita, Mukherjee"]
[Result "1/2-1/2"]
[ECO "B91"]
[WhiteElo "2529"]
[BlackElo "2275"]
[Annotator "TA"]
[PlyCount "70"]
[EventDate "2022.05.15"]
[EventType "swiss"]
[EventCountry "IND"]
[SourceTitle "playchess.com"]
[Source "ChessBase"]
[SourceQuality "1"]
[TimeControl "5400+30"]

{[%evp 11,70,16,15,0,14,0,0,0,24,0,14,3,13,14,13,2,7,9,18,20,25,33,20,-48,-36,-33,-37,-31,-13,-33,-38,-35,-38,-34,-36,-33,-35,-54,-31,-64,0,-37,-29,-116,-66,-65,-63,-70,-53,-74,-50,-50,-50,-50,-50,-57,-10,-22,-22,-22,-24]} 1. e4 {[%emt 1:31:00]} c5 {[%emt 0:05:28]} 2. Nf3 {[%emt 0:00:00]} d6 {[%emt 0:00:18]} 3. d4 {[%emt 0:00:00]} cxd4 {[%emt 0:00:11]} 4. Nxd4 {[%emt 0:00:00]} Nf6 {[%emt 0:00:13]} 5. Nc3 {[%emt 0:00:00]} a6 {[%emt 0:01:18]} 6. g3 {[%emt 0:00:00]} e5 {[%emt 0:00:24]} 7. Nf3 {[%emt 0:00:00] B91: Sicilian Najdorf: 6 g3.} Be7 {[%emt 0:00:52]} 8. Nh4 {[%emt 0:00:00]} O-O {[%emt 0:05:20]} 9. Bg2 {[%emt 0:00:00]} g6 {[%emt 0:02:08]} 10. a4 {[%emt 0:00:00]} Be6 {[%emt 0:01:20]} 11. O-O {[%emt 0:00:00]} Nbd7 {[%emt 0:02:07] [#]} 12. Qe2 $146 {[%emt 0:00:00]} ({Predecessor:} 12. Bh6 Re8 13. h3 Rc8 14. Qd2 Kh8 15. Be3 Qa5 16. Rfb1 Rc6 17. Nf3 Bd8 18. Qe1 {1-0 (37) Delorme,A (2510)-Nowak,L (2311) Szczawno Zdroj 2018}) 12... Rc8 {[%emt 0:04:24]} 13. Rd1 {[%emt 0:00:00]} Qc7 {[%emt 0:07:14]} 14. Nf3 {[%emt 0:00:00]} Bc4 {[%emt 0:00:49]} 15. Qe1 {[%emt 0:00:00]} b5 {[%emt 0:01:43]} 16. axb5 {[%emt 0:00:00]} axb5 {[%emt 0:00:35]} 17. Nd2 {[%emt 0:00:00]} ({Better is} 17. b4 $11) 17... Be6 $15 {[%emt 0:08:21]} 18. Nxb5 {[%emt 0:00:00]} Qxc2 {[%emt 0:00:19]} 19. Nf1 {[%emt 0:00:00]} Nc5 {[%emt 0:21:19] aiming for ...Nd3.} 20. Ne3 {[%emt 0:00:00]} Qb3 {[%emt 0:00:54]} 21. Bf1 {[%emt 0:00:00] [#] Ra3 is the strong threat.} Ra8 {[%emt 0:00:56]} ({Don't take} 21... Ncxe4 22. Ra3 Ng5 23. Kh1 $14) 22. Rxa8 {[%emt 0:00:00]} Rxa8 {[%emt 0:00:05]} 23. Nc7 {[%emt 0:00:00]} Rc8 {[%emt 0:01:03]} 24. Ncd5 {[%emt 0:00:00]} Bxd5 {[%emt 0:01:16]} 25. exd5 {[%emt 0:00:00]} Na4 {[%emt 0:01:13]} (25... Bd8 $15) 26. Qe2 {[%emt 0:00:00]} (26. Rd3 $5 {[%cal Rd3b3]} Qb8 27. Ra3 $11) 26... Rc5 {[%emt 0:04:13]} 27. Ng2 {[%emt 0:00:00]} (27. Rd3 $11 Qb4 28. Qd2 Qxd2 29. Bxd2) 27... Rxd5 {[%emt 0:07:44]} (27... Nxd5 $17 28. Re1 Nab6) 28. Rxd5 {[%emt 0:00:00]} Nxd5 {[%emt 0:00:21]} 29. Qb5 {[%emt 0:00:00]} Nc5 {[%emt 0:03:21]} 30. Ne3 {[%emt 0:00:00] [#] Hoping for Qe8+.} Qxb5 {[%emt 0:02:17]} 31. Bxb5 {[%emt 0:00:00]} Nxe3 {[%emt 0:00:04]} 32. Bxe3 {[%emt 0:00:01]} d5 {[%emt 0:00:05]} 33. b4 {[%emt 0:01:49]} d4 {[%emt 0:00:31]} (33... Ne4 $15 {deserves consideration.} 34. Bc6 Nc3) 34. Bxd4 {[%emt 0:01:57]} exd4 {[%emt 0:00:06]} 35. bxc5 {[%emt 0:00:02]} Bxc5 {[%emt 0:00:02] Weighted Error Value: White=0.16 (very precise) /Black=0.12 (very precise)} 1/2-1/2

[Event "13th KIIT Festival-A 2022"]
[Site "Bhubaneswar"]
[Date "2022.05.27"]
[Round "8.5"]
[White "Rahman, Ziaur"]
[Black "Stupak, Kirill"]
[Result "0-1"]
[ECO "C02"]
[WhiteElo "2431"]
[BlackElo "2440"]
[Annotator "TA"]
[PlyCount "72"]
[EventDate "2022.05.15"]
[EventType "swiss"]
[EventCountry "IND"]
[SourceTitle "playchess.com"]
[Source "ChessBase"]
[SourceQuality "1"]
[TimeControl "5400+30"]

{[%evp 12,72,31,-26,-20,-37,-12,-48,16,8,14,15,21,16,17,13,12,11,10,12,12,6,28,26,25,8,13,10,14,0,0,-20,-16,-49,-59,-40,-39,-22,-12,-32,-14,-66,-70,-68,-62,-52,-37,-67,-59,-286,-302,-281,-258,-245,-235,-539,-536,-554,-531,-984,-914,-905,-913]} 1. e4 {[%emt 0:00:08]} e6 {[%emt 0:00:11]} 2. d4 {[%emt 0:00:07]} d5 {[%emt 0:00:02]} 3. e5 {[%emt 0:00:12]} c5 {[%emt 0:00:09]} 4. c3 {[%emt 0:00:08]} Qb6 {[%emt 0:00:04]} 5. Nf3 {[%emt 0:00:12]} Nc6 {[%emt 0:00:04]} 6. Bd3 {[%emt 0:00:22]} Bd7 {[%emt 0:01:06]} 7. O-O {[%emt 0:00:50] 7.0-0 scores better than 7.dxc5.} (7. dxc5 $14 Bxc5 8. O-O) 7... cxd4 $11 {[%emt 0:00:18] C02: French: Advance Variation.} 8. Re1 {[%emt 0:00:24]} Nge7 {[%emt 0:03:42]} 9. h4 {[%emt 0:00:37]} Nf5 {[%emt 0:07:24]} (9... a6 $15) 10. Bxf5 {[%emt 0:08:16]} exf5 {[%emt 0:00:23]} 11. cxd4 {[%emt 0:00:26]} h6 {[%emt 0:02:00]} 12. Nc3 {[%emt 0:00:28][%cal Bb1c3,Bc3e2,Be2f4][%mdl 32]} Be6 {[%emt 0:00:09]} 13. Ne2 {[%emt 0:05:48]} Be7 {[%emt 0:03:19]} 14. h5 {[%emt 0:01:38]} O-O {[%emt 0:02:49] [#]} 15. Nf4 $146 {[%emt 0:00:34]} ({Predecessor:} 15. Rb1 Rfc8 16. Nf4 a5 17. Kh1 Nb4 18. Nxe6 fxe6 19. Rg1 Qb5 20. g4 Qd3 21. Qxd3 Nxd3 22. gxf5 Nxf2+ {1-0 (74) Piorun,K (2640)-Vastrukhin,O (2376) Warsaw 2021}) 15... Rfc8 {[%emt 0:00:45]} 16. Re3 {[%emt 0:01:35]} Nb4 {[%emt 0:14:10] aiming for ...Nc2.} 17. Bd2 {[%emt 0:05:12] [#] Hoping for Rb3.} a5 {[%emt 0:05:46]} 18. Bc3 {[%emt 0:02:29]} a4 {[%emt 0:01:37]} 19. a3 {[%emt 0:01:16]} Nc6 {[%emt 0:01:08][%cal Bb4c6,Bc6a5,Ba5b3][%mdl 32]} 20. Nxe6 {[%emt 0:03:22]} fxe6 {[%emt 0:00:17]} 21. Ne1 {[%emt 0:02:16]} Na5 {[%emt 0:08:06]} 22. g4 {[%emt 0:17:43]} Nb3 {[%emt 0:12:02]} 23. Rb1 {[%emt 0:01:50]} Rf8 {[%emt 0:01:48]} 24. Ng2 {[%emt 0:03:19]} Rac8 $36 {[%emt 0:11:19][%cal Ba8c8,Bc8c4,Bc4d4,Bd4e4][%mdl 2080] White is under pressure.} 25. Rd3 $1 {[%emt 0:02:18]} f4 {[%emt 0:06:14][%cal Of4f3]} 26. Rf3 {[%emt 0:07:09]} (26. Ne1 $11) 26... Rc4 $1 $15 {[%emt 0:06:02][%cal Rb3d4]} 27. Rxf4 {[%emt 0:00:11]} Rxf4 {[%emt 0:00:31]} 28. Nxf4 {[%emt 0:00:04]} Nxd4 {[%emt 0:00:05]} 29. Ng6 {[%emt 0:01:16]} Bc5 {[%emt 0:02:46]} 30. Bxd4 $2 {[%emt 0:05:15] [#] This costs White the game.} ({Better is} 30. Kg2 $1 $15) 30... Rxd4 $19 {[%emt 0:00:53]} ({Stronger than} 30... Bxd4 31. Qf3 (31. Ne7+ $2 Kf7 $19) 31... Bc5 32. b4 axb3 33. Rxb3 $17) 31. Qe2 {[%emt 0:01:33]} Re4 {[%emt 0:04:09]} 32. Qf3 {[%emt 0:00:36]} Qb3 {[%emt 0:01:12]} 33. Kg2 {[%emt 0:29:26]} (33. Qxb3 {is tougher.} axb3 34. Kf1) 33... Qc2 {[%emt 0:00:11] Active counter play! Black is clearly winning.} 34. Rf1 {[%emt 0:00:00]} Qxb2 {[%emt 0:00:34]} 35. Qg3 {[%emt 0:00:00]} Qe2 {[%emt 0:01:20]} 36. Nf4 {[%emt 0:00:00]} Qc4 {[%emt 0:00:22] Weighted Error Value: White=0.47/Black=0.09 (flawless)} 0-1

[Event "13th KIIT Festival-A 2022"]
[Site "Bhubaneswar"]
[Date "2022.05.27"]
[Round "8.6"]
[White "Saravana, Krishnan P."]
[Black "Laxman, R.R."]
[Result "1/2-1/2"]
[ECO "B44"]
[WhiteElo "2269"]
[BlackElo "2420"]
[Annotator "TA"]
[PlyCount "102"]
[EventDate "2022.05.15"]
[EventType "swiss"]
[EventCountry "IND"]
[SourceTitle "playchess.com"]
[Source "ChessBase"]
[SourceQuality "1"]
[TimeControl "5400+30"]

{[%evp 17,102,-3,0,-12,-10,-11,-9,-25,-25,-25,-13,0,0,-8,-11,-6,-2,-10,-17,-22,-10,-21,18,26,27,0,16,0,8,5,15,7,2,0,0,0,0,0,0,0,0,0,0,0,0,0,0,0,0,0,0,0,0,0,0,0,0,0,0,0,0,0,0,0,0,0,0,0,7,0,0,0,0,0,0,0,0,0,0,0,0,0,0,0,0,0,0]} 1. c4 {[%emt 0:00:03]} e6 {[%emt 0:01:39]} 2. e4 {[%emt 0:00:20]} c5 {[%emt 0:02:30]} 3. Nf3 {[%emt 0:00:28]} Nc6 {[%emt 0:00:05]} 4. d4 {[%emt 0:02:08]} cxd4 {[%emt 0:00:13]} 5. Nxd4 {[%emt 0:00:05]} Nf6 {[%emt 0:00:19]} 6. Nc3 {[%emt 0:05:02]} Bb4 {[%emt 0:01:52]} 7. Nxc6 {[%emt 0:01:46]} dxc6 {[%emt 0:00:25]} 8. Qxd8+ {[%emt 0:02:25]} Kxd8 {[%emt 0:00:03]} 9. Bd2 {[%emt 0:10:58] 9.e5 is the hot move.} e5 {[%emt 0:03:39]} 10. f3 {[%emt 0:01:49] B44: Sicilian: Taimanov: 5 Nb5.} Be6 {[%emt 0:00:47]} 11. O-O-O {[%emt 0:05:27]} Nd7 {[%emt 0:00:40] [#]} 12. g3 $146 {[%emt 0:02:33]} ({Predecessor:} 12. Na4 Bxd2+ 13. Kxd2 Kc7 14. Be2 g5 15. h4 h6 16. Ke3 Nb6 17. Nxb6 Kxb6 18. Kd2 {0-1 (67) Bryakin,M (2459)-Atalik,S (2517) Novi Sad 2020}) 12... f6 {[%emt 0:01:14]} 13. Kc2 {[%emt 0:01:12]} Be7 {[%emt 0:04:05]} 14. h4 {[%emt 0:06:03]} h5 {[%emt 0:00:37]} 15. Bh3 {[%emt 0:01:15]} (15. Be3 {seems wilder.} Kc7 16. f4 g6 17. Bh3) 15... Bxh3 {[%emt 0:00:08]} 16. Rxh3 {[%emt 0:00:03]} Kc7 {[%emt 0:00:15]} 17. Be3 {[%emt 0:07:41]} b6 {[%emt 0:00:34]} 18. Na4 {[%emt 0:02:54]} Rad8 {[%emt 0:07:01]} 19. Rhh1 {[%emt 0:02:04]} Bc5 {[%emt 0:05:28]} 20. Nxc5 {[%emt 0:03:47]} Nxc5 {[%emt 0:00:01]} 21. b4 {[%emt 0:02:49]} Ne6 {[%emt 0:00:02] The position is equal.} 22. f4 {[%emt 0:01:21]} Nd4+ {[%emt 0:04:09]} 23. Bxd4 {[%emt 0:39:47]} Rxd4 {[%emt 0:00:58]} 24. Rxd4 {[%emt 0:00:00]} exd4 $11 {[%emt 0:00:01][%mdl 4096] Endgame KR-KR} 25. Kd3 {[%emt 0:00:00]} c5 {[%emt 0:00:06]} 26. Rb1 {[%emt 0:00:00]} Kc6 {[%emt 0:02:19]} 27. bxc5 {[%emt 0:00:00]} bxc5 {[%emt 0:00:02]} 28. a4 {[%emt 0:00:00]} Rg8 {[%emt 0:01:37]} 29. a5 {[%emt 0:00:00]} g5 {[%emt 0:01:49]} 30. hxg5 {[%emt 0:00:00]} fxg5 {[%emt 0:00:02][%cal Bf6g5,Bg5h4,Bh4h3,Bh3h2][%mdl 32]} 31. f5 {[%emt 0:00:00][%cal Bf4f5,Bf5f6,Bf6f7][%mdl 32]} Kd6 {[%emt 0:03:22]} 32. f6 {[%emt 0:00:00]} h4 {[%emt 0:00:43]} 33. f7 {[%emt 0:00:00]} Rf8 {[%emt 0:00:12]} 34. gxh4 {[%emt 0:00:00]} gxh4 {[%emt 0:00:02]} 35. Rb7 {[%emt 0:00:21]} h3 {[%emt 0:05:57] [#] Threatens to win with ...h2.} 36. Rxa7 {[%emt 0:00:29]} h2 {[%emt 0:00:04]} 37. Ra6+ {[%emt 0:00:22]} Ke5 {[%emt 0:00:08]} (37... Kc7 $5 38. Rh6 Rxf7 $11) 38. Rh6 {[%emt 0:00:22]} Rxf7 {[%emt 0:00:02] aiming for ...Rf3+.} 39. Rh5+ {[%emt 0:00:07]} Ke6 {[%emt 0:00:23] [#] ...Rf3+ is the strong threat.} 40. Rh6+ {[%emt 0:01:19]} Rf6 {[%emt 0:00:37]} 41. Rxh2 {[%emt 0:00:07] And now Rh3 would win.} Rf3+ {[%emt 0:00:09]} 42. Kd2 {[%emt 0:01:03]} Rc3 {[%emt 0:01:12]} 43. Rh6+ {[%emt 0:00:54]} Ke5 {[%emt 0:00:31]} 44. Rh5+ {[%emt 0:00:27]} Kxe4 {[%emt 0:00:05]} 45. Rxc5 {[%emt 0:00:13]} Ra3 {[%emt 0:00:05]} 46. Rh5 {[%emt 0:02:38]} Ra2+ {[%emt 0:00:09]} 47. Kc1 {[%emt 0:00:09]} d3 {[%emt 0:00:25]} 48. Kb1 {[%emt 0:00:49]} Ra4 {[%emt 0:01:43]} 49. Kb2 {[%emt 0:00:28]} ({Don't play} 49. Kc1 Kd4 50. Kb2 Rb4+ 51. Ka3 (51. Kc1 Kc3 $19) 51... Rb1 $17) 49... Ke3 {[%emt 0:00:28]} 50. Re5+ $1 {[%emt 0:01:26]} Kd4 {[%emt 0:02:45]} (50... Kd2 $5 {[%cal Ra4b4]} 51. Kb3 Ra1 $11) 51. Rd5+ {[%emt 0:00:15]} Kxc4 {[%emt 0:00:26] An even fight not without its subleties.  Weighted Error Value: White=0.03 (flawless) /Black=0.02 (flawless)} 1/2-1/2